bitfinex-derivatives/quotes_SOLF0:USTF0_20240906
["timestamp","ask_amount","ask_price","bid_price","bid_amount"]
[1725595605606,3.86913973,131.14,131.11,3.87251219]
[1725595605813,0.05553973,131.14,131.13,9.4]
[1725595607110,0.05553973,131.14,131.13,13.2139]
[1725595609716,102.41752125,131.21,131.13,9.4]
[1725595609913,3.80587063,131.2,131.15,9.4]
[1725595610119,13.20587063,131.2,131.14,9.4]
[1725595610418,22.93,131.2,131.13,13.2139]
[1725595610611,0.05796198,131.18,131.15,0.0573083]
[1725595611009,3.8128,131.17,131.15,0.0573083]
[1725595611216,0.05796198,131.18,131.15,3.8706083]
[1725595612021,3.87046198,131.18,131.15,3.8706083]
[1725595612624,3.87046198,131.18,131.15,0.0573083]
[1725595613318,3.87046198,131.18,131.16,9.4]
[1725595615522,3.87046198,131.18,131.15,0.0573083]
[1725595617625,3.8128,131.17,131.15,0.0573083]
[1725595618929,0.05796198,131.18,131.15,0.0573083]
[1725595618930,3.813,131.16,131.15,0.0573083]
[1725595619626,13.213,131.16,131.15,0.0573083]
[1725595619828,13.213,131.16,131.09,2.7814]
[1725595619829,32.33,131.16,131.09,2.7814]
[1725595620131,9.4,131.14,131.09,2.7814]
[1725595620331,9.4,131.14,131.09,6.5964]
[1725595620725,13.21758663,131.14,131.09,2.7814]
[1725595621027,13.21758663,131.14,131.03,1.3779]
[1725595621028,22.9850931,131.13,131.1,0.05378766]
[1725595621233,32.33,131.11,131.1,0.05411578]
[1725595621425,3.816,131.06,131.02,9.4]
[1725595622330,3.816,131.06,131.02,13.2171]
[1725595622527,0.04945865,131.05,131.03,0.05778352]
[1725595629443,3.8165,131.04,131.03,0.05778352]
[1725595632136,13.2165,131.04,131.03,0.05778352]
[1725595632331,9.4,131.04,130.98,9.4]
[1725595633142,9.4,131.04,130.96,13.2187]
[1725595633337,9.4,131.04,130.95,1.3588]
[1725595633338,9.44990343,131.01,130.99,0.05120147]
[1725595633540,3.8177,131.0,130.99,0.05120147]
[1725595642541,0.04990343,131.01,130.9,23.46]
[1725595642741,46.39,131.02,130.9,26.2527]
[1725595642945,46.39,131.02,130.93,3.8196]
[1725595642946,23.46,131.0,130.93,3.8196]
[1725595643145,3.8188,130.97,130.93,3.8196]
[1725595643548,0.04838502,130.96,130.94,0.05804201]
[1725595644650,3.8192,130.95,130.94,0.05804201]
[1725595647349,0.04838502,130.96,130.94,0.05804201]
[1725595648560,3.86728502,130.96,130.94,0.05804201]
[1725595649454,0.04838502,130.96,130.94,0.05804201]
[1725595649653,0.04838502,130.96,130.94,3.87744201]
[1725595649846,3.86717462,131.01,130.94,3.84116423]
[1725595650048,3.86717462,131.01,130.94,3.78312222]
[1725595650254,3.818,131.0,130.96,3.8187]
[1725595650753,3.8181,130.99,130.95,7.65522805]
[1725595650946,0.05283207,130.98,130.96,0.05318662]
[1725595651757,0.05283207,130.98,130.96,3.87198662]
[1725595652357,0.05283207,130.98,130.96,0.05318662]
[1725595654049,0.05283207,130.98,130.96,3.87188662]
[1725595657663,0.05283207,130.98,130.97,3.8186]
[1725595660966,0.05283207,130.98,130.96,0.05318662]
[1725595663375,3.87113207,130.98,130.96,0.05318662]
[1725595677490,0.05283207,130.98,130.96,0.05318662]
[1725595678486,0.05283207,130.98,130.96,3.87208662]
[1725595679679,0.05283207,130.98,130.96,0.05318662]
[1725595679985,9.38,130.97,130.96,0.05318662]
[1725595680681,13.1986,130.97,130.96,0.05318662]
[1725595681279,3.8193,130.95,130.91,3.8202]
[1725595681485,3.8193,130.95,130.89,9.38]
[1725595681681,3.8193,130.95,130.9,3.74101076]
[1725595682492,3.8193,130.95,130.92,3.82]
[1725595682493,0.05364346,130.94,130.92,3.82]
[1725595685280,1.3538,131.0,130.93,9.38]
[1725595685488,13.24717462,131.01,130.93,9.38]
[1725595685689,3.8182,130.99,130.95,3.819]
[1725595685890,9.38,131.01,130.95,3.819]
[1725595686391,3.87097267,130.99,130.97,0.05074983]
[1725595690889,0.05287267,130.99,130.97,0.05074983]
[1725595691883,3.87087267,130.99,130.97,0.05074983]
[1725595695994,3.8183,130.98,130.97,0.05074983]
[1725595697193,13.1983,130.98,130.97,0.05074983]
[1725595700198,3.8183,130.98,130.97,0.05074983]
[1725595707311,13.1983,130.98,130.97,0.05074983]
[1725595708099,3.8196,130.94,130.91,5.2269]
[1725595709203,3.87425323,130.94,130.91,5.27981163]
[1725595711314,3.87425323,130.94,130.91,1.45961163]
[1725595711511,3.8198,130.93,130.91,1.45961163]
[1725595711811,3.8198,130.93,130.91,0.05291163]
[1725595713306,3.87425323,130.94,130.91,9.43291163]
[1725595715008,3.87425323,130.94,130.91,13.25321163]
[1725595720610,0.05465323,130.94,130.91,9.43291163]
[1725595720810,0.05465323,130.94,130.92,3.8199]
[1725595721214,0.05465323,130.94,130.91,13.25311163]
[1725595721718,0.05465323,130.94,130.91,9.43291163]
[1725595722517,9.38,130.99,130.93,9.38]
[1725595723121,9.38,130.99,130.94,9.38]
[1725595723321,3.8185,130.98,130.94,13.1992]
[1725595723523,0.05096336,130.97,130.95,1.36728021]
[1725595723826,0.05096336,130.97,130.95,5.1493533]
[1725595725917,0.05096336,130.97,130.95,1.36728021]
[1725595734730,3.86956336,130.97,130.95,1.36728021]
[1725595736028,3.8189,130.96,130.95,0.04908021]
[1725595736429,0.05096336,130.97,130.95,0.04908021]
[1725595736926,3.86976336,130.97,130.95,0.04908021]
[1725595744441,0.05096336,130.97,130.95,0.04908021]
[1725595751534,3.86956336,130.97,130.95,0.04908021]
[1725595752831,0.05096336,130.97,130.95,9.42908021]
[1725595753033,97.90176775,131.03,130.96,9.38]
[1725595753238,101.71876775,131.03,130.98,9.38]
[1725595753434,101.71876775,131.03,130.99,9.38]
[1725595753740,97.90176775,131.03,130.99,9.38]
[1725595753937,97.90176775,131.03,130.99,13.1978]
[1725595754151,0.05004649,131.02,131.0,0.05495824]
[1725595755641,0.05004649,131.02,131.0,3.87255824]
[1725595756045,0.05004649,131.02,131.01,9.38]
[1725595756336,1.3678,131.1,131.02,3.8169]
[1725595756337,9.38,131.09,131.02,3.8169]
[1725595756543,3.8156,131.08,131.03,9.38]
[1725595756752,9.38,131.08,131.0,1.3757]
[1725595757044,3.8162,131.06,131.0,10.7557]
[1725595757344,0.05379595,131.04,131.02,0.05110886]
[1725595769855,0.05379595,131.04,131.02,9.43110886]
[1725595771154,0.05379595,131.04,131.02,13.24810886]
[1725595773263,3.87039595,131.04,131.02,9.43110886]
[1725595773562,0.05379595,131.04,131.02,0.05110886]
[1725595774453,3.8168,131.03,131.02,0.05110886]
[1725595804384,3.87039595,131.04,131.02,0.05110886]
[1725595804680,0.05379595,131.04,131.02,0.05110886]
[1725595804981,0.05379595,131.04,131.02,3.86800886]
[1725595805481,0.05379595,131.04,131.03,17.00932256]
[1725595805685,13.28146782,131.09,131.03,13.19252256]
[1725595806282,3.8158,131.07,131.03,17.00922256]
[1725595806677,0.05534729,131.06,131.04,0.04832182]
[1725595818888,3.87134729,131.06,131.04,0.04832182]
[1725595823188,0.05534729,131.06,131.04,0.04832182]
[1725595824896,0.05534729,131.06,131.05,9.38]
[1725595825189,3.8156,131.08,131.05,9.38]
[1725595825989,0.05434085,131.08,131.05,13.1961]
[1725595831292,3.86984085,131.08,131.05,3.8161]
[1725595831493,3.86984085,131.08,131.04,14.61552182]
[1725595832894,3.86984085,131.08,131.05,3.8161]
[1725595833090,0.05434085,131.08,131.07,9.38]
[1725595833290,0.05434085,131.08,131.04,1.41912182]
[1725595833597,0.05434085,131.08,131.05,9.38]
[1725595834103,0.05434085,131.08,131.05,16.97136844]
[1725595836203,0.05434085,131.08,131.06,3.8158]
[1725595836506,0.05434085,131.08,131.06,13.1958]
[1725595837315,0.05434085,131.08,131.07,13.1957]
[1725595837609,36.12295718,131.15,131.09,9.38]
[1725595838107,3.8141,131.13,131.04,1.3708]
[1725595838296,3.8141,131.13,131.08,9.38]
[1725595838502,3.8141,131.13,131.09,0.0540774]
[1725595840507,3.8141,131.13,131.1,9.38]
[1725595841404,99.53893914,131.16,131.11,9.38]
[1725595841599,99.53893914,131.16,131.13,9.38]
[1725595841997,3.8133,131.15,131.13,9.38]
[1725595843610,3.8133,131.15,131.12,0.05178603]
[1725595846502,3.8133,131.15,131.12,3.86598603]
[1725595846704,3.8133,131.15,131.13,9.38]
[1725595846905,3.8132,131.16,131.14,9.38]
[1725595847610,3.8133,131.15,131.12,9.43178603]
[1725595847815,3.8133,131.15,131.12,9.42929189]
[1725595848212,3.8133,131.15,131.12,13.24329189]
[1725595848816,9.38,131.19,131.12,0.04929189]
[1725595849112,9.38,131.17,131.14,0.0500336]
[1725595849411,3.8133,131.15,131.14,0.05839646]
[1725595862019,3.8129,131.17,131.14,0.05839646]
[1725595862216,3.8129,131.17,131.16,9.38]
[1725595863329,1.2987,131.21,131.16,9.38]
[1725595863522,1.2987,131.21,131.17,9.42861487]
[1725595863818,3.85936812,131.22,131.17,9.42861487]
[1725595864023,33.6406,131.24,131.17,9.42861487]
[1725595864322,0.28035398,131.23,131.17,13.24131487]
[1725595864725,3.8119,131.2,131.17,13.24131487]
[1725595865228,3.8122,131.19,131.17,9.42861487]
[1725595866818,3.812,131.2,131.17,9.42861487]
[1725595867018,14.57912349,131.24,131.17,9.42861487]
[1725595867224,0.28035243,131.23,131.17,9.42861487]
[1725595867822,3.8125,131.18,131.17,0.04861487]
[1725595873534,3.8135,131.15,131.12,13.1942]
[1725595874330,3.86451709,131.15,131.12,13.25276834]
[1725595876039,0.05101709,131.15,131.12,0.05856834]
[1725595876240,0.05101709,131.15,131.12,9.43856834]
[1725595877830,3.86451709,131.15,131.13,9.38]
[1725595878029,3.86451709,131.15,131.14,9.38]
[1725595879949,110.66443177,131.2,131.14,13.1936]
[1725595879950,98.67293177,131.2,131.14,13.1936]
[1725595880146,98.67293177,131.2,131.17,9.38]
[1725595880443,3.8126,131.18,131.17,9.38]
[1725595881738,3.8128,131.17,131.16,0.05168983]
[1725595883952,3.8126,131.18,131.16,0.05168983]
[1725595884536,3.8123,131.19,131.17,9.38]
[1725595884846,3.8123,131.19,131.18,9.38]
[1725595889149,3.8123,131.19,131.17,9.38]
[1725595890042,3.8123,131.19,131.16,7.67397624]
[1725595890043,3.8123,131.19,131.18,9.38]
[1725595891337,33.6771,131.25,131.18,9.38]
[1725595891541,37.4084951,131.25,131.2,0.04851925]
[1725595891842,3.8116,131.21,131.2,0.04851925]
[1725595900147,3.813,131.16,131.14,9.38]
[1725595900952,3.8133,131.16,131.14,9.38]
[1725595901150,0.04851925,131.16,131.14,0.05016061]
[1725595902343,3.8133,131.15,131.14,0.05016061]
[1725595909961,3.7313951,131.25,131.14,0.05016061]
[1725595910151,13.1113951,131.25,131.19,9.38]
[1725595910356,9.38,131.25,131.19,9.38]
[1725595910554,3.8118,131.21,131.19,9.38]
[1725595910761,9.38,131.24,131.18,9.38]
[1725595910959,22.93,131.23,131.2,0.05440035]
[1725595911162,22.93,131.23,131.2,0.05000443]
[1725595912263,3.8116,131.21,131.2,0.05000443]
[1725595912461,36.1216,131.21,131.2,0.05000443]
[1725595919277,32.31,131.21,131.14,3.8134]
[1725595919468,32.31,131.21,131.15,9.38]
[1725595920474,3.8127,131.18,131.17,0.05373709]
[1725595920880,30.47638336,131.18,131.17,0.05373709]
[1725595922179,3.8137,131.14,131.12,9.38]
[1725595923175,3.8137,131.14,131.12,9.4300239]
[1725595923382,0.05805308,131.14,131.12,13.2441239]
[1725595924086,0.05805308,131.14,131.13,9.38]
[1725595925376,0.05805308,131.14,131.13,13.1939]
[1725595929877,3.8126,131.18,131.13,9.38]
[1725595930179,3.8126,131.18,131.15,9.38]
[1725595930380,3.8126,131.18,131.15,13.1932]
[1725595930774,3.85828844,131.18,131.15,13.24839609]
[1725595931979,3.85828844,131.18,131.15,9.43519609]
[1725595934085,3.85828844,131.18,131.15,13.24849609]
[1725595934485,3.8128,131.17,131.15,0.05519609]
[1725595939987,3.85828844,131.18,131.15,3.86849609]
[1725595941390,3.85828844,131.18,131.15,0.05519609]
[1725595941793,0.04568844,131.18,131.15,0.05519609]
[1725595942488,0.04568844,131.18,131.16,9.38]
[1725595943488,0.04568844,131.18,131.16,13.1929]
[1725595943796,0.04568844,131.18,131.17,9.38]
[1725595943997,0.04568844,131.18,131.17,13.1928]
[1725595945590,0.04568844,131.18,131.17,16.98216189]
[1725595946797,0.04568844,131.18,131.17,13.1928]
[1725595947091,0.04568844,131.18,131.17,17.06653478]
[1725595947493,0.04568844,131.18,131.16,1.3891]
[1725595947697,0.04568844,131.18,131.16,10.7691]
[1725595948198,0.04568844,131.18,131.16,14.5819]
[1725595951684,0.04568844,131.18,131.16,10.7691]
[1725595951892,0.04568844,131.18,131.17,3.8128]
[1725595952497,0.04568844,131.18,131.17,13.1928]
[1725595958801,0.04568844,131.18,131.16,1.3891]
[1725595958995,0.04568844,131.18,131.15,13.24849609]
[1725595959609,0.04568844,131.18,131.15,0.05519609]
[1725595959610,3.85818844,131.18,131.15,0.05519609]
[1725595963108,3.8129,131.17,131.15,0.05519609]
[1725595964006,3.85828844,131.18,131.15,0.05519609]
[1725595966709,3.8128,131.17,131.15,0.05519609]
[1725595971613,3.8136,131.14,131.1,3.8145]
[1725595971806,32.31,131.16,131.09,9.38]
[1725595972007,32.31,131.16,131.06,2.738]
[1725595972008,32.31,131.13,131.06,2.738]
[1725595972404,32.31,131.13,131.05,14.5411]
[1725595972405,9.38,131.11,131.05,14.5411]
[1725595972604,9.38,131.08,131.07,0.05816425]
[1725595972819,3.816,131.06,131.03,2.62575025]
[1725595973014,3.816,131.06,131.02,13.10013027]
[1725595973312,3.86754067,131.06,131.03,0.04914242]
[1725595974522,0.05154067,131.06,131.03,9.42914242]
[1725595974718,0.05154067,131.06,131.05,9.38]
[1725595974912,2.7843,131.12,131.05,9.38]
[1725595975107,2.7843,131.12,131.08,9.38]
[1725595975317,3.8146,131.11,131.08,9.38]
[1725595975816,3.86394386,131.11,131.08,9.43130383]
[1725595984636,0.04934386,131.11,131.08,13.24660383]
[1725595986043,0.04934386,131.11,131.09,9.38]
[1725595986640,0.04934386,131.11,131.09,13.195]
[1725595987334,0.04934386,131.11,131.09,3.815]
[1725595987536,0.04934386,131.11,131.1,9.38]
[1725595991038,0.04934386,131.11,131.09,3.815]
[1725595991238,0.04934386,131.11,131.09,13.195]
[1725595992845,0.04934386,131.11,131.1,3.8148]
[1725595993448,0.04934386,131.11,131.1,13.1948]
[1725595994146,0.04934386,131.11,131.1,3.8148]
[1725595998251,0.04934386,131.11,131.08,0.05130383]
[1725595999355,0.04934386,131.11,131.08,3.86650383]
[1725596001045,3.86404386,131.11,131.08,0.05130383]
[1725596002747,3.8148,131.1,131.08,0.05130383]
[1725596003156,0.04934386,131.11,131.08,0.05130383]
[1725596003558,0.04934386,131.11,131.08,13.24670383]
[1725596010863,3.86394386,131.11,131.08,13.24670383]
[1725596015859,3.86394386,131.11,131.08,9.43130383]
[1725596020366,0.04934386,131.11,131.09,9.38]
[1725596021164,0.04934386,131.11,131.09,13.1949]
[1725596026974,0.04934386,131.11,131.1,3.8148]
[1725596027285,24.3195,131.2,131.09,9.38]
[1725596027471,3.8129,131.17,131.13,9.38]
[1725596027671,24.3195,131.2,131.13,9.38]
[1725596027872,33.6995,131.2,131.13,9.38]
[1725596028077,3.8127,131.18,131.13,13.1937]
[1725596028278,3.8127,131.18,131.14,0.05060924]
[1725596028478,33.6995,131.2,131.14,0.05060924]
[1725596028779,3.8129,131.17,131.14,0.05060924]
[1725596029072,32.29,131.19,131.14,0.05060924]
[1725596029476,3.813,131.17,131.14,0.05060924]
[1725596030080,3.8131,131.16,131.14,0.05060924]
[1725596030981,22.91,131.19,131.14,0.05060924]
[1725596031174,32.29,131.19,131.14,0.05060924]
[1725596031781,3.8129,131.17,131.14,0.05060924]
[1725596033472,3.8131,131.16,131.14,0.05060924]
[1725596037082,3.8128,131.17,131.14,9.43060924]
[1725596037283,24.3195,131.2,131.15,9.38]
[1725596038387,3.8127,131.18,131.15,9.38]
[1725596043685,3.8122,131.19,131.15,13.1933]
[1725596043881,3.8122,131.19,131.16,0.05568574]
[1725596044780,3.8119,131.2,131.16,3.86868574]
[1725596044976,35.0753,131.22,131.17,9.38]
[1725596045179,22.91,131.22,131.17,13.1927]
[1725596045381,3.8118,131.21,131.17,13.1927]
[1725596045684,3.8118,131.21,131.18,0.04855467]
[1725596047792,3.8122,131.19,131.18,0.04855467]
[1725596048888,3.812,131.2,131.18,0.04855467]
[1725596050579,3.8122,131.19,131.18,0.04855467]
[1725596055688,36.1022,131.19,131.18,0.04855467]
[1725596059190,3.8122,131.19,131.18,0.04855467]
[1725596068501,3.812,131.2,131.18,0.04855467]
[1725596074404,3.8122,131.19,131.18,0.04855467]
[1725596076202,3.812,131.2,131.18,0.04855467]
[1725596077806,1.3877,131.23,131.19,9.38]
[1725596079109,10.7677,131.23,131.18,0.04855467]
[1725596079312,3.8115,131.22,131.19,3.8122]
[1725596086010,3.8105,131.25,131.21,3.8113]
[1725596086217,3.8105,131.25,131.22,0.05572777]
[1725596087821,3.8107,131.24,131.22,0.05572777]
[1725596089515,3.811,131.23,131.22,0.05572777]
[1725596095528,36.101,131.23,131.22,0.05572777]
[1725596099032,3.8121,131.2,131.16,13.1929]
[1725596099925,0.04876725,131.19,131.17,0.0501526]
[1725596101333,3.86096725,131.19,131.17,0.0501526]
[1725596103430,0.04876725,131.19,131.17,9.4301526]
[1725596103731,0.04876725,131.19,131.18,9.38]
[1725596105329,0.04876725,131.19,131.18,13.1925]
[1725596109338,0.04876725,131.19,131.17,13.2428526]
[1725596111244,0.04876725,131.19,131.17,0.0501526]
[1725596112447,3.8125,131.18,131.17,0.0501526]
[1725596113141,3.8139,131.13,131.1,2.6813]
[1725596113340,32.29,131.14,131.05,3.81248431]
[1725596113540,32.29,131.14,131.08,9.38]
[1725596114258,0.054287,131.12,131.1,0.05115576]
[1725596114450,3.868687,131.12,131.1,0.05115576]
[1725596116757,3.8145,131.11,131.1,0.05115576]
[1725596119258,3.8159,131.07,131.02,3.8169]
[1725596119559,3.8159,131.07,131.04,9.38]
[1725596119858,3.8154,131.08,131.04,13.1965]
[1725596120255,0.05681848,131.07,131.05,0.05139421]
[1725596121456,3.87251848,131.07,131.05,0.05139421]
[1725596122060,3.816,131.06,131.05,0.05139421]
[1725596122260,0.05681848,131.07,131.05,0.05139421]
[1725596123362,3.87251848,131.07,131.05,0.05139421]
[1725596124163,3.816,131.06,131.05,0.05139421]
[1725596124866,3.87261848,131.07,131.05,0.05139421]
[1725596127863,3.816,131.06,131.05,0.05139421]
[1725596132871,13.25261848,131.07,131.05,0.05139421]
[1725596133070,3.87261848,131.07,131.05,0.05139421]
[1725596144964,3.816,131.06,131.05,0.05139421]
[1725596150782,39.99770254,131.06,131.05,0.05139421]
[1725596150980,9.38,131.05,130.99,3.78481909]
[1725596151283,9.38,131.05,131.0,3.8175]
[1725596151284,13.17970643,131.05,131.0,3.8175]
[1725596151684,3.8167,131.04,131.0,3.8175]
[1725596151882,0.05861954,131.03,131.01,0.05493696]
[1725596157083,3.87541954,131.03,131.01,0.05493696]
[1725596160189,0.05861954,131.03,131.01,0.05493696]
[1725596160690,3.87551954,131.03,131.01,0.05493696]
[1725596160881,9.43861954,131.03,131.01,0.05493696]
[1725596161087,9.38,131.02,131.01,0.05493696]
[1725596161584,13.1971,131.02,131.01,0.05493696]
[1725596164085,0.05861954,131.03,131.01,0.05493696]
[1725596166496,0.05861954,131.03,131.01,3.87213696]
[1725596166684,0.05861954,131.03,131.01,0.05493696]
[1725596168294,0.05861954,131.03,131.02,3.8171]
[1725596180001,0.05861954,131.03,131.01,3.87223696]
[1725596182802,0.05861954,131.03,131.02,3.8171]
[1725596186416,0.05861954,131.03,131.01,9.43493696]
[1725596186805,0.05861954,131.03,131.01,3.87223696]
[1725596191520,0.05861954,131.03,131.02,3.8171]
[1725596194022,0.05861954,131.03,131.01,0.05493696]
[1725596195511,9.43861954,131.03,131.01,0.05493696]
[1725596196516,13.25551954,131.03,131.01,0.05493696]
[1725596197018,3.8171,131.02,131.01,0.05493696]
[1725596197210,13.1971,131.02,131.01,0.05493696]
[1725596201120,13.25551954,131.03,131.01,0.05493696]
[1725596204818,3.8171,131.02,131.01,0.05493696]
[1725596205025,13.1971,131.02,131.01,0.05493696]
[1725596206127,3.8171,131.02,131.01,0.05493696]
[1725596214524,3.87551954,131.03,131.01,0.05493696]
[1725596217139,0.05861954,131.03,131.01,0.05493696]
[1725596217327,0.05861954,131.03,131.01,9.43493696]
[1725596218025,0.05861954,131.03,131.02,3.8171]
[1725596219320,0.05861954,131.03,131.01,3.87213696]
[1725596219721,0.05861954,131.03,131.01,0.05493696]
[1725596221431,13.25551954,131.03,131.01,0.05493696]
[1725596222026,3.87551954,131.03,131.01,0.05493696]
[1725596224325,0.05861954,131.03,131.01,0.05493696]
[1725596227221,3.87551954,131.03,131.01,0.05493696]
[1725596229023,3.8171,131.02,131.01,0.05493696]
[1725596230532,13.1979,131.0,130.94,9.38]
[1725596230732,13.1979,131.0,130.96,112.60863958]
[1725596231131,3.818,130.99,130.96,112.60863958]
[1725596231527,3.87417687,130.99,130.96,112.66131093]
[1725596231933,9.43617687,130.99,130.96,108.84271093]
[1725596232534,13.32138699,130.99,130.96,108.84271093]
[1725596232743,3.8186,130.97,130.96,108.84271093]
[1725596233038,3.8186,130.97,130.96,0.05267135]
[1725596233940,3.8195,130.94,130.92,2.63059925]
[1725596234935,3.87266485,130.94,130.92,2.68706073]
[1725596235130,0.05316485,130.94,130.92,2.68706073]
[1725596235743,0.05316485,130.94,130.92,6.50706073]
[1725596235937,0.05316485,130.94,130.92,2.68706073]
[1725596238543,3.87266485,130.94,130.92,2.68706073]
[1725596239644,3.87266485,130.94,130.92,0.05646148]
[1725596239844,1.4291,130.98,130.92,0.05646148]
[1725596240042,9.38,130.96,130.93,29.37318151]
[1725596240244,9.38,130.96,130.94,26.74190331]
[1725596240449,13.1989,130.96,130.95,53.48380662]
[1725596240847,17.08423646,130.96,130.95,53.48380662]
[1725596241049,39.99423646,130.96,130.95,53.48380662]
[1725596241450,39.99423646,130.96,130.95,49.15720662]
[1725596241749,3.8192,130.95,130.94,0.05228862]
[1725596242048,3.8192,130.95,130.94,26.79827987]
[1725596244251,3.8192,130.95,130.94,47.37094745]
[1725596245355,26.7292,130.95,130.94,47.37094745]
[1725596245946,3.8192,130.95,130.94,47.37094745]
[1725596246250,3.8192,130.95,130.94,26.79827987]
[1725596247945,3.8192,130.95,130.94,0.05228862]
[1725596249248,26.7292,130.95,130.94,0.05228862]
[1725596257355,3.8192,130.95,130.94,0.05228862]
[1725596259153,0.05479101,130.97,130.94,0.05228862]
[1725596259754,0.05479101,130.97,130.94,3.87168862]
[1725596263256,3.87369101,130.97,130.94,0.05228862]
[1725596263450,9.43479101,130.97,130.94,0.05228862]
[1725596263857,3.8191,130.96,130.94,0.05228862]
[1725596264961,13.1992,130.95,130.94,0.05228862]
[1725596273571,3.8192,130.95,130.94,0.05228862]
[1725596275566,3.819,130.96,130.94,0.05228862]
[1725596280776,3.87359101,130.97,130.94,0.05228862]
[1725596280972,0.05479101,130.97,130.95,9.38]
[1725596282375,0.05479101,130.97,130.95,13.1991]
[1725596283977,22.91,131.05,130.95,9.38]
[1725596284182,3.8173,131.02,130.96,9.38]
[1725596284374,3.80184493,131.02,130.97,1.3174]
[1725596284675,32.29,131.03,130.97,1.3174]
[1725596285076,0.05527152,131.01,130.99,0.05808096]
[1725596286884,0.05527152,131.01,130.99,3.87598096]
[1725596287678,0.05527152,131.01,130.99,0.05808096]
[1725596291588,3.87267152,131.01,130.99,0.05808096]
[1725596292386,3.8177,131.0,130.99,0.05808096]
[1725596293991,3.87277152,131.01,130.99,0.05808096]
[1725596295992,3.8177,131.0,130.99,0.05808096]
[1725596296285,36.1077,131.0,130.99,0.05808096]
[1725596296488,13.1977,131.0,130.99,0.05808096]
[1725596296890,36.1077,131.0,130.99,0.05808096]
[1725596299593,3.8191,130.96,130.93,4.1359]
[1725596299990,9.38,130.97,130.93,4.1359]
[1725596300187,9.38,130.97,130.93,2.7258]
[1725596300389,3.8192,130.95,130.93,2.7258]
[1725596300590,3.87273055,130.95,130.93,1.38797256]
[1725596300786,0.05353055,130.95,130.93,0.05317256]
[1725596302293,3.8194,130.94,130.93,0.05317256]
[1725596306197,3.87273055,130.95,130.93,0.05317256]
[1725596312911,3.8194,130.94,130.93,0.05317256]
[1725596317106,3.87283055,130.95,130.93,0.05317256]
[1725596320801,3.8194,130.94,130.93,0.05317256]
[1725596328005,3.87283055,130.95,130.93,0.05317256]
[1725596329108,0.05353055,130.95,130.93,0.05317256]
[1725596330908,3.87293055,130.95,130.93,0.05317256]
[1725596331707,0.05353055,130.95,130.93,0.05317256]
[1725596332504,3.87293055,130.95,130.93,0.05317256]
[1725596358452,3.8194,130.94,130.93,0.05317256]
[1725596360152,32.32,130.94,130.86,115.88208683]
[1725596360342,9.38,130.92,130.86,115.88208683]
[1725596360748,13.2002,130.92,130.88,3.821]
[1725596360944,13.2002,130.92,130.89,0.05254648]
[1725596361148,0.05350223,130.91,130.89,0.05254648]
[1725596361341,3.87390223,130.91,130.89,0.05254648]
[1725596366651,3.8206,130.9,130.89,0.05254648]
[1725596366858,9.38,130.91,130.84,9.38]
[1725596367463,3.821,130.89,130.85,3.8219]
[1725596367651,3.821,130.89,130.84,9.38]
[1725596367848,0.05825131,130.88,130.85,0.04949278]
[1725596368055,0.05825131,130.88,130.85,9.42949278]
[1725596368765,0.05825131,130.88,130.86,3.8218]
[1725596369860,0.05825131,130.88,130.86,13.2018]
[1725596371065,0.05825131,130.88,130.87,3.8215]
[1725596372261,3.8195,130.94,130.9,3.8204]
[1725596372465,3.83834104,130.96,130.9,3.8204]
[1725596372656,9.38,130.96,130.89,9.38]
[1725596372962,3.8198,130.93,130.89,13.2007]
[1725596373466,0.05450049,130.92,130.9,3.87315599]
[1725596378562,0.05450049,130.92,130.9,0.05265599]
[1725596379676,3.87460049,130.92,130.9,0.05265599]
[1725596383074,3.8203,130.91,130.9,0.05265599]
[1725596401886,3.87460049,130.92,130.9,0.05265599]
[1725596402988,0.05450049,130.92,130.9,0.05265599]
[1725596407490,3.87460049,130.92,130.9,0.05265599]
[1725596407992,9.43450049,130.92,130.9,0.05265599]
[1725596408198,3.8203,130.91,130.9,0.05265599]
[1725596408387,9.43450049,130.92,130.9,0.05265599]
[1725596408589,0.05450049,130.92,130.9,0.05265599]
[1725596410994,3.87460049,130.92,130.9,0.05265599]
[1725596413697,0.05450049,130.92,130.9,0.05265599]